[Event "*** Titled Tuesday Blitz"]
[Site "Chess.com"]
[Date "2021.02.02"]
[Round "2"]
[White "Unknown_IM"]
[Black "fish7728"]
[Result "0-1"]
[WhiteElo "2386"]
[BlackElo "2165"]
[TimeControl "180+1"]
[EndTime "10:18:50 PST"]
[Termination "fish7728 won by resignation"]

1. e4 {[%clk 0:03:00.9]} 1... c5 {[%clk 0:02:59.6]} 2. Nf3 {[%clk 0:03:00.3]}
2... e6 {[%clk 0:03:00.1]} 3. c3 {[%clk 0:03:00]} 3... Nf6 {[%clk 0:02:59.6]} 4.
e5 {[%clk 0:03:00.1]} 4... Nd5 {[%clk 0:02:59.9]} 5. d4 {[%clk 0:02:59.5]} 5...
d6 {[%clk 0:03:00.6]} 6. a3 {[%clk 0:02:58.4]} 6... Nc6 {[%clk 0:02:59.4]} 7.
Bd3 {[%clk 0:02:57.8]} 7... Be7 {[%clk 0:02:59.1]} 8. O-O {[%clk 0:02:57]} 8...
O-O {[%clk 0:02:58.7]} 9. Qc2 {[%clk 0:02:56.4]} 9... f5 {[%clk 0:02:45.2]} 10.
exf6 {[%clk 0:02:56.1]} 10... Nxf6 {[%clk 0:02:41]} 11. dxc5 {[%clk 0:02:55.9]}
11... d5 {[%clk 0:02:38.9]} 12. b4 {[%clk 0:02:54.8]} 12... e5 {[%clk 0:02:38]}
13. Bb5 {[%clk 0:02:48.1]} 13... e4 {[%clk 0:02:32.9]} 14. Nd4 {[%clk 0:02:42]}
14... Ne5 {[%clk 0:02:30]} 15. h3 {[%clk 0:02:29.6]} 15... a6 {[%clk 0:02:29.7]}
16. Be2 {[%clk 0:02:29.2]} 16... Qe8 {[%clk 0:02:15.5]} 17. c4 {[%clk
0:02:27.5]} 17... dxc4 {[%clk 0:02:07.9]} 18. Bxc4+ {[%clk 0:02:26]} 18... Kh8
{[%clk 0:01:53.3]} 19. Bf4 {[%clk 0:02:06.9]} 19... Nxc4 {[%clk 0:01:40.3]} 20.
Qxc4 {[%clk 0:02:06]} 20... Qg6 {[%clk 0:01:39.9]} 21. Ne6 {[%clk 0:01:44]}
21... Qf7 {[%clk 0:01:37.9]} 22. Nc3 {[%clk 0:01:15.9]} 22... Bxe6 {[%clk
0:01:36.4]} 23. Qe2 {[%clk 0:01:16.3]} 23... Bc4 {[%clk 0:01:35.7]} 24. Qe3
{[%clk 0:01:10.1]} 24... Bxf1 {[%clk 0:01:34.7]} 25. Rxf1 {[%clk 0:01:11]} 25...
Rad8 {[%clk 0:01:34]} 26. Bh2 {[%clk 0:01:08.9]} 26... Qc4 {[%clk 0:01:32.7]}
27. Be5 {[%clk 0:00:56.2]} 27... Rd3 {[%clk 0:01:20.2]} 28. Qc1 {[%clk
0:00:50.2]} 28... Nd5 {[%clk 0:01:16.3]} 29. Nxd5 {[%clk 0:00:48.3]} 29... Qxd5
{[%clk 0:01:16.3]} 30. Ba1 {[%clk 0:00:46.9]} 30... Bf6 {[%clk 0:01:15.1]} 31.
Bxf6 {[%clk 0:00:46.5]} 31... Rxf6 {[%clk 0:01:14.3]} 32. a4 {[%clk 0:00:44.8]}
32... Rg6 {[%clk 0:01:08.2]} 33. b5 {[%clk 0:00:41.7]} 33... e3 {[%clk
0:01:03.7]} 34. f3 {[%clk 0:00:41.1]} 34... Rd2 {[%clk 0:00:56.3]} 35. g4 {[%clk
0:00:31.1]} 35... Qe5 {[%clk 0:00:52.6]} 36. f4 {[%clk 0:00:30.1]} 36... Qe4
{[%clk 0:00:52.3]} 0-1

[Event "*** Titled Tuesday Blitz"]
[Site "Chess.com"]
[Date "2021.02.02"]
[Round "2"]
[White "PopMilan95"]
[Black "ViktoriyaTarasova"]
[Result "1-0"]
[WhiteElo "2585"]
[BlackElo "2296"]
[TimeControl "180+1"]
[EndTime "10:18:51 PST"]
[Termination "PopMilan95 won by resignation"]

1. e4 {[%clk 0:03:00.9]} 1... c5 {[%clk 0:02:59.9]} 2. Nf3 {[%clk 0:02:59.6]}
2... d6 {[%clk 0:03:00.3]} 3. d4 {[%clk 0:02:59.2]} 3... cxd4 {[%clk 0:03:00.5]}
4. Qxd4 {[%clk 0:02:59.5]} 4... Nf6 {[%clk 0:03:00.2]} 5. Nc3 {[%clk 0:02:57.7]}
5... Nc6 {[%clk 0:02:59.9]} 6. Bb5 {[%clk 0:02:57.5]} 6... e6 {[%clk 0:02:59.6]}
7. Bg5 {[%clk 0:02:56.2]} 7... Bd7 {[%clk 0:02:58.7]} 8. Bxc6 {[%clk 0:02:55.6]}
8... Bxc6 {[%clk 0:02:58.9]} 9. O-O-O {[%clk 0:02:55.8]} 9... Be7 {[%clk
0:02:58.9]} 10. Bxf6 {[%clk 0:02:52.9]} 10... Bxf6 {[%clk 0:02:55.5]} 11. Qd3
{[%clk 0:02:38.2]} 11... O-O {[%clk 0:02:51.4]} 12. Nd4 {[%clk 0:02:38.2]} 12...
Rc8 {[%clk 0:02:23.3]} 13. f4 {[%clk 0:02:35.5]} 13... Qb6 {[%clk 0:02:09.5]}
14. g4 {[%clk 0:02:25.2]} 14... Rfd8 {[%clk 0:01:57]} 15. g5 {[%clk 0:02:22.6]}
15... Be7 {[%clk 0:01:51.1]} 16. h4 {[%clk 0:02:15.6]} 16... Qc7 {[%clk
0:01:34.8]} 17. h5 {[%clk 0:02:10.4]} 17... a6 {[%clk 0:01:30]} 18. g6 {[%clk
0:02:09.4]} 18... fxg6 {[%clk 0:01:19.4]} 19. Nxe6 {[%clk 0:02:06.4]} 19... Qd7
{[%clk 0:01:18.6]} 20. Nxd8 {[%clk 0:02:03.9]} 20... Bxd8 {[%clk 0:01:16.5]} 21.
hxg6 {[%clk 0:02:03.9]} 21... h6 {[%clk 0:01:16.9]} 22. Nd5 {[%clk 0:02:02.4]}
22... Bb5 {[%clk 0:01:09.7]} 23. Qe3 {[%clk 0:01:51.6]} 23... Qc6 {[%clk
0:01:01.1]} 24. Rh2 {[%clk 0:01:49.4]} 24... Bc4 {[%clk 0:00:59]} 25. Kb1 {[%clk
0:01:38.7]} 25... a5 {[%clk 0:00:57.3]} 26. b3 {[%clk 0:01:29.4]} 26... Ba6
{[%clk 0:00:56.4]} 27. f5 {[%clk 0:01:18.3]} 27... a4 {[%clk 0:00:48]} 28. f6
{[%clk 0:01:14.7]} 28... a3 {[%clk 0:00:46.3]} 29. c3 {[%clk 0:00:48.2]} 29...
b5 {[%clk 0:00:30.6]} 30. f7+ {[%clk 0:00:42.2]} 30... Kf8 {[%clk 0:00:28.4]}
31. Rxh6 {[%clk 0:00:39.5]} 1-0

[Event "*** Titled Tuesday Blitz"]
[Site "Chess.com"]
[Date "2021.02.02"]
[Round "2"]
[White "VladaSviridova"]
[Black "LisikValera"]
[Result "0-1"]
[WhiteElo "2270"]
[BlackElo "2475"]
[TimeControl "180+1"]
[EndTime "10:18:51 PST"]
[Termination "LisikValera won by resignation"]

1. d4 {[%clk 0:03:00.9]} 1... d5 {[%clk 0:02:59.5]} 2. c4 {[%clk 0:03:00.8]}
2... c6 {[%clk 0:03:00]} 3. Nf3 {[%clk 0:03:01.2]} 3... Nf6 {[%clk 0:03:00.1]}
4. Nc3 {[%clk 0:03:01.9]} 4... e6 {[%clk 0:03:00]} 5. e3 {[%clk 0:03:01.8]} 5...
Nbd7 {[%clk 0:02:59.2]} 6. Qc2 {[%clk 0:03:02.4]} 6... Bd6 {[%clk 0:02:58.7]} 7.
Bd3 {[%clk 0:03:02.5]} 7... dxc4 {[%clk 0:02:53.9]} 8. Bxc4 {[%clk 0:03:02.4]}
8... b5 {[%clk 0:02:54.5]} 9. Be2 {[%clk 0:02:59.6]} 9... Bb7 {[%clk 0:02:53.8]}
10. O-O {[%clk 0:02:56.4]} 10... a6 {[%clk 0:02:53.9]} 11. Rd1 {[%clk
0:02:23.8]} 11... c5 {[%clk 0:02:48.4]} 12. dxc5 {[%clk 0:02:15]} 12... Bxc5
{[%clk 0:02:49.3]} 13. a3 {[%clk 0:02:08.5]} 13... Rc8 {[%clk 0:02:44.5]} 14. b4
{[%clk 0:02:06.4]} 14... Be7 {[%clk 0:02:33.7]} 15. Bb2 {[%clk 0:02:06.3]} 15...
O-O {[%clk 0:02:32.6]} 16. Rac1 {[%clk 0:01:39.5]} 16... Qc7 {[%clk 0:02:32.4]}
17. Qb1 {[%clk 0:01:21]} 17... Qb8 {[%clk 0:02:32.1]} 18. Nd4 {[%clk 0:01:12.2]}
18... Qa8 {[%clk 0:02:29.6]} 19. Bf3 {[%clk 0:01:06.2]} 19... Ne5 {[%clk
0:02:27.3]} 20. Bxb7 {[%clk 0:01:03.7]} 20... Qxb7 {[%clk 0:02:28.2]} 21. h3
{[%clk 0:00:49]} 21... Nc4 {[%clk 0:02:27.5]} 22. Nf3 {[%clk 0:00:33]} 22...
Rfd8 {[%clk 0:02:25]} 23. Ne2 {[%clk 0:00:28.3]} 23... Qe4 {[%clk 0:02:16.3]}
24. Qxe4 {[%clk 0:00:27.1]} 24... Nxe4 {[%clk 0:02:15.7]} 25. Rxd8+ {[%clk
0:00:23.9]} 25... Rxd8 {[%clk 0:02:15.1]} 26. Bd4 {[%clk 0:00:17.9]} 26... Nxa3
{[%clk 0:02:14.5]} 27. Ra1 {[%clk 0:00:15.5]} 27... Bxb4 {[%clk 0:02:13.1]} 28.
Ne5 {[%clk 0:00:15.4]} 28... Bf8 {[%clk 0:02:07.8]} 29. Nc6 {[%clk 0:00:13.6]}
29... Rc8 {[%clk 0:02:07.6]} 30. Na5 {[%clk 0:00:11.3]} 30... b4 {[%clk
0:02:00.5]} 31. Nb3 {[%clk 0:00:10.8]} 31... Nc3 {[%clk 0:01:51.7]} 32. Bxc3
{[%clk 0:00:09.6]} 32... bxc3 {[%clk 0:01:52.6]} 33. Ned4 {[%clk 0:00:08.3]}
33... g6 {[%clk 0:01:48.4]} 34. f3 {[%clk 0:00:06.9]} 34... Rb8 {[%clk
0:01:42.7]} 35. Kf2 {[%clk 0:00:06.8]} 35... a5 {[%clk 0:01:41.7]} 36. Rc1
{[%clk 0:00:06.9]} 36... a4 {[%clk 0:01:40.3]} 37. Na5 {[%clk 0:00:05.8]} 37...
Rb2+ {[%clk 0:01:39.7]} 38. Kg3 {[%clk 0:00:05.5]} 38... c2 {[%clk 0:01:40]} 39.
Nac6 {[%clk 0:00:05.5]} 39... e5 {[%clk 0:01:38.3]} 40. Nxe5 {[%clk 0:00:04.9]}
40... Bg7 {[%clk 0:01:38.5]} 41. Nd3 {[%clk 0:00:04.4]} 41... Rb1 {[%clk
0:01:33.7]} 42. Rxc2 {[%clk 0:00:03.2]} 42... Nxc2 {[%clk 0:01:33]} 43. Nxc2
{[%clk 0:00:03.1]} 43... Rb3 {[%clk 0:01:31.2]} 44. Nc1 {[%clk 0:00:02.9]} 44...
Rc3 {[%clk 0:01:31.4]} 0-1

[Event "*** Titled Tuesday Blitz"]
[Site "Chess.com"]
[Date "2021.02.02"]
[Round "2"]
[White "Orest_Vovk"]
[Black "Alexchess1984"]
[Result "0-1"]
[WhiteElo "2463"]
[BlackElo "2678"]
[TimeControl "180+1"]
[EndTime "10:18:55 PST"]
[Termination "Alexchess1984 won on time"]

1. g4 {[%clk 0:03:00.9]} 1... e5 {[%clk 0:02:58.9]} 2. g5 {[%clk 0:03:00.3]}
2... d5 {[%clk 0:02:51.2]} 3. Bg2 {[%clk 0:02:55.2]} 3... Nc6 {[%clk 0:02:50.1]}
4. c4 {[%clk 0:02:53.6]} 4... dxc4 {[%clk 0:02:45.9]} 5. Bxc6+ {[%clk
0:02:52.6]} 5... bxc6 {[%clk 0:02:45.5]} 6. Qa4 {[%clk 0:02:53.1]} 6... Bd7
{[%clk 0:02:41.8]} 7. Qxc4 {[%clk 0:02:46.2]} 7... Qxg5 {[%clk 0:02:41.1]} 8.
Nf3 {[%clk 0:02:46.3]} 8... Qh5 {[%clk 0:02:33.4]} 9. Rg1 {[%clk 0:02:39.7]}
9... f6 {[%clk 0:02:26.2]} 10. Nc3 {[%clk 0:02:16.2]} 10... Ne7 {[%clk
0:02:25.4]} 11. d4 {[%clk 0:02:08.3]} 11... exd4 {[%clk 0:02:17.3]} 12. Qxd4
{[%clk 0:02:05.3]} 12... Ng6 {[%clk 0:02:03.6]} 13. Bf4 {[%clk 0:01:45.7]} 13...
Nxf4 {[%clk 0:01:53.4]} 14. Qxf4 {[%clk 0:01:46.6]} 14... Bd6 {[%clk 0:01:47.4]}
15. Qe4+ {[%clk 0:01:43.4]} 15... Kf8 {[%clk 0:01:33]} 16. O-O-O {[%clk
0:01:20.5]} 16... Re8 {[%clk 0:01:33.2]} 17. Qd4 {[%clk 0:01:10.5]} 17... Qf5
{[%clk 0:01:30.7]} 18. Qxa7 {[%clk 0:00:46.2]} 18... Kf7 {[%clk 0:01:03.3]} 19.
Nd4 {[%clk 0:00:24.5]} 19... Qf4+ {[%clk 0:00:48.1]} 20. e3 {[%clk 0:00:19.6]}
20... Qxf2 {[%clk 0:00:47.9]} 21. Nc2 {[%clk 0:00:11.2]} 21... Bf5 {[%clk
0:00:40.4]} 22. Nd4 {[%clk 0:00:04.7]} 22... Qxe3+ {[%clk 0:00:37.5]} 0-1

[Event "*** Titled Tuesday Blitz"]
[Site "Chess.com"]
[Date "2021.02.02"]
[Round "2"]
[White "Sychev_Klementy"]
[Black "Djager97"]
[Result "1-0"]
[WhiteElo "2902"]
[BlackElo "2571"]
[TimeControl "180+1"]
[EndTime "10:18:59 PST"]
[Termination "Sychev_Klementy won by resignation"]

1. e4 {[%clk 0:02:56.8]} 1... e5 {[%clk 0:03:00.5]} 2. Nf3 {[%clk 0:02:47.5]}
2... Nc6 {[%clk 0:03:00.7]} 3. Nc3 {[%clk 0:02:45.7]} 3... Nf6 {[%clk
0:03:00.3]} 4. Bb5 {[%clk 0:02:45.8]} 4... Bb4 {[%clk 0:02:58.9]} 5. O-O {[%clk
0:02:44.9]} 5... O-O {[%clk 0:02:57.9]} 6. d3 {[%clk 0:02:45.4]} 6... d6 {[%clk
0:02:57.8]} 7. Bg5 {[%clk 0:02:44.7]} 7... Ne7 {[%clk 0:02:56.1]} 8. Nh4 {[%clk
0:02:36.1]} 8... a5 {[%clk 0:02:32.8]} 9. Bc4 {[%clk 0:02:22.2]} 9... c6 {[%clk
0:02:29.3]} 10. a3 {[%clk 0:02:15.6]} 10... Bc5 {[%clk 0:02:05.3]} 11. Kh1
{[%clk 0:02:10.6]} 11... b5 {[%clk 0:01:46.9]} 12. Ba2 {[%clk 0:02:09]} 12...
Be6 {[%clk 0:01:31.7]} 13. f4 {[%clk 0:02:05.3]} 13... Bxa2 {[%clk 0:01:26.2]}
14. Rxa2 {[%clk 0:01:57.3]} 14... exf4 {[%clk 0:01:20]} 15. Bxf6 {[%clk
0:01:51.7]} 15... gxf6 {[%clk 0:01:20.9]} 16. Qh5 {[%clk 0:01:45.6]} 16... Kh8
{[%clk 0:00:51.7]} 17. Ne2 {[%clk 0:01:37.8]} 17... Ng6 {[%clk 0:00:36.2]} 18.
Nf5 {[%clk 0:01:37]} 18... Rg8 {[%clk 0:00:32]} 19. Rf3 {[%clk 0:01:31.7]} 19...
d5 {[%clk 0:00:20.5]} 20. Rh3 {[%clk 0:01:20.8]} 20... Nf8 {[%clk 0:00:20.1]}
21. Nh6 {[%clk 0:01:20]} 21... Rg7 {[%clk 0:00:09.1]} 22. Nxf7+ {[%clk
0:01:19.6]} 22... Rxf7 {[%clk 0:00:09.6]} 23. Qxf7 {[%clk 0:01:20.3]} 23... Ra7
{[%clk 0:00:10.2]} 24. Qh5 {[%clk 0:01:14.8]} 24... Rg7 {[%clk 0:00:10.8]} 25.
Ra1 {[%clk 0:01:08.6]} 25... dxe4 {[%clk 0:00:10.9]} 26. Qxc5 {[%clk 0:01:06.9]}
26... f3 {[%clk 0:00:11.5]} 27. gxf3 {[%clk 0:01:06.4]} 27... exd3 {[%clk
0:00:11.9]} 28. cxd3 {[%clk 0:01:05.6]} 28... Ne6 {[%clk 0:00:09.7]} 29. Qxc6
{[%clk 0:01:02.5]} 29... Ng5 {[%clk 0:00:08.6]} 30. Rg3 {[%clk 0:01:02.8]} 30...
Qxd3 {[%clk 0:00:08.1]} 31. Qxf6 {[%clk 0:00:56.9]} 31... Qxe2 {[%clk
0:00:05.4]} 32. Rxg5 {[%clk 0:00:56.7]} 1-0

[Event "*** Titled Tuesday Blitz"]
[Site "Chess.com"]
[Date "2021.02.02"]
[Round "2"]
[White "Hadza_3"]
[Black "Ashedu66"]
[Result "0-1"]
[WhiteElo "2405"]
[BlackElo "2186"]
[TimeControl "180+1"]
[EndTime "10:18:59 PST"]
[Termination "Ashedu66 won by checkmate"]

1. e4 {[%clk 0:03:00.9]} 1... e5 {[%clk 0:02:59.3]} 2. Nc3 {[%clk 0:03:00.3]}
2... Nf6 {[%clk 0:02:58.2]} 3. g3 {[%clk 0:03:00.7]} 3... d5 {[%clk 0:02:57.6]}
4. exd5 {[%clk 0:03:01.6]} 4... Nxd5 {[%clk 0:02:57.5]} 5. Bg2 {[%clk
0:03:02.5]} 5... Be6 {[%clk 0:02:55.5]} 6. Nge2 {[%clk 0:03:01.5]} 6... Nc6
{[%clk 0:02:52.9]} 7. O-O {[%clk 0:03:01.6]} 7... Bc5 {[%clk 0:02:50.5]} 8. d3
{[%clk 0:03:01.4]} 8... h5 {[%clk 0:02:48.5]} 9. Ne4 {[%clk 0:03:01]} 9... Be7
{[%clk 0:02:47.4]} 10. h4 {[%clk 0:03:01.2]} 10... Qd7 {[%clk 0:02:43.4]} 11. a3
{[%clk 0:02:53.6]} 11... O-O-O {[%clk 0:02:35.4]} 12. b4 {[%clk 0:02:53.5]}
12... Kb8 {[%clk 0:02:32]} 13. Bd2 {[%clk 0:02:42.9]} 13... f6 {[%clk
0:01:47.4]} 14. Rb1 {[%clk 0:02:33.8]} 14... g5 {[%clk 0:01:35.6]} 15. hxg5
{[%clk 0:02:31.3]} 15... h4 {[%clk 0:01:35.4]} 16. Nc5 {[%clk 0:02:23.7]} 16...
Bxc5 {[%clk 0:01:34.6]} 17. bxc5 {[%clk 0:02:24.6]} 17... hxg3 {[%clk
0:01:33.2]} 18. fxg3 {[%clk 0:02:23.1]} 18... Qe7 {[%clk 0:01:15.5]} 19. gxf6
{[%clk 0:02:14.9]} 19... Qxc5+ {[%clk 0:01:11.2]} 20. Rf2 {[%clk 0:02:08.2]}
20... Nxf6 {[%clk 0:00:59.9]} 21. Bb4 {[%clk 0:01:50]} 21... Nxb4 {[%clk
0:00:52.8]} 22. Rxb4 {[%clk 0:01:50.9]} 22... Ng4 {[%clk 0:00:31.3]} 23. d4
{[%clk 0:01:42.2]} 23... Nxf2 {[%clk 0:00:23.2]} 24. Kxf2 {[%clk 0:01:43.1]}
24... exd4 {[%clk 0:00:18.9]} 25. Bxb7 {[%clk 0:01:37.9]} 25... d3+ {[%clk
0:00:15.1]} 26. Nd4 {[%clk 0:01:35.6]} 26... Rxd4 {[%clk 0:00:13.4]} 27. Kg2
{[%clk 0:01:17.4]} 27... Rxb4 {[%clk 0:00:08.7]} 28. axb4 {[%clk 0:01:18.3]}
28... Bd5+ {[%clk 0:00:08.2]} 29. Bxd5 {[%clk 0:01:17.3]} 29... Qxd5+ {[%clk
0:00:08.3]} 30. Kf2 {[%clk 0:01:17.8]} 30... Rh2+ {[%clk 0:00:07]} 31. Ke3
{[%clk 0:01:18.3]} 31... Re2+ {[%clk 0:00:05.8]} 32. Qxe2 {[%clk 0:01:16.7]}
32... dxe2 {[%clk 0:00:05.4]} 33. Kxe2 {[%clk 0:01:17.6]} 33... Qe4+ {[%clk
0:00:05.4]} 34. Kd2 {[%clk 0:01:17.6]} 34... Qxb4+ {[%clk 0:00:05.6]} 35. Ke3
{[%clk 0:01:15.5]} 35... Qg4 {[%clk 0:00:06.1]} 36. Kf2 {[%clk 0:01:15.5]} 36...
a5 {[%clk 0:00:06.7]} 37. Kg2 {[%clk 0:01:16.1]} 37... a4 {[%clk 0:00:07]} 38.
Kf2 {[%clk 0:01:17]} 38... a3 {[%clk 0:00:07.3]} 39. c4 {[%clk 0:01:17.9]} 39...
a2 {[%clk 0:00:07.6]} 40. c5 {[%clk 0:01:18.8]} 40... a1=Q {[%clk 0:00:07.9]}
41. c6 {[%clk 0:01:19.7]} 41... Qad4+ {[%clk 0:00:07.8]} 42. Ke1 {[%clk
0:01:19.2]} 42... Qf3 {[%clk 0:00:06]} 43. g4 {[%clk 0:01:18.2]} 43... Qdd1#
{[%clk 0:00:06]} 0-1

[Event "*** Titled Tuesday Blitz"]
[Site "Chess.com"]
[Date "2021.02.02"]
[Round "2"]
[White "Tekushka"]
[Black "Cambek64"]
[Result "0-1"]
[WhiteElo "2453"]
[BlackElo "2283"]
[TimeControl "180+1"]
[EndTime "10:19:00 PST"]
[Termination "Cambek64 won by checkmate"]

1. e4 {[%clk 0:03:00.9]} 1... e6 {[%clk 0:02:50.5]} 2. d4 {[%clk 0:03:00.2]}
2... d5 {[%clk 0:02:46.2]} 3. Nc3 {[%clk 0:03:01.1]} 3... Nc6 {[%clk 0:02:45.3]}
4. Nf3 {[%clk 0:02:56.1]} 4... Nf6 {[%clk 0:02:44.2]} 5. e5 {[%clk 0:02:21.9]}
5... Ne4 {[%clk 0:02:43.2]} 6. Bd3 {[%clk 0:02:19.3]} 6... Bb4 {[%clk 0:02:42]}
7. Bd2 {[%clk 0:02:16.1]} 7... Nxd2 {[%clk 0:02:40.7]} 8. Qxd2 {[%clk
0:02:16.4]} 8... b6 {[%clk 0:02:39.1]} 9. O-O {[%clk 0:02:11.2]} 9... Bb7 {[%clk
0:02:38.3]} 10. a3 {[%clk 0:02:10.2]} 10... Be7 {[%clk 0:02:37.5]} 11. Ne2
{[%clk 0:02:08.1]} 11... Na5 {[%clk 0:02:34.8]} 12. Ng3 {[%clk 0:02:05.1]} 12...
Nc4 {[%clk 0:02:31.7]} 13. Qc1 {[%clk 0:02:05.1]} 13... O-O {[%clk 0:02:28.6]}
14. b3 {[%clk 0:02:02.3]} 14... Na5 {[%clk 0:02:28.8]} 15. Qf4 {[%clk
0:02:01.3]} 15... c5 {[%clk 0:02:28.2]} 16. h4 {[%clk 0:01:51.9]} 16... c4
{[%clk 0:02:17.9]} 17. bxc4 {[%clk 0:01:42.3]} 17... dxc4 {[%clk 0:02:18.1]} 18.
Be2 {[%clk 0:01:42.7]} 18... f6 {[%clk 0:01:57.8]} 19. Qg4 {[%clk 0:01:35.9]}
19... Qd7 {[%clk 0:01:55.5]} 20. Nh5 {[%clk 0:01:28.6]} 20... Rf7 {[%clk
0:01:50.2]} 21. exf6 {[%clk 0:01:22.8]} 21... Bxf6 {[%clk 0:01:50]} 22. Nxf6+
{[%clk 0:01:21.4]} 22... Rxf6 {[%clk 0:01:49]} 23. Ne5 {[%clk 0:01:21.8]} 23...
Qd6 {[%clk 0:01:36]} 24. Nxc4 {[%clk 0:01:16.4]} 24... Nxc4 {[%clk 0:01:25.9]}
25. Bxc4 {[%clk 0:01:16.2]} 25... Rg6 {[%clk 0:01:26.1]} 26. Bxe6+ {[%clk
0:00:46.5]} 26... Kh8 {[%clk 0:01:11.9]} 27. Qxg6 {[%clk 0:00:38.4]} 27... hxg6
{[%clk 0:01:10.7]} 28. Rfe1 {[%clk 0:00:29.3]} 28... Qxd4 {[%clk 0:01:05.9]} 29.
Bh3 {[%clk 0:00:26.6]} 29... Rf8 {[%clk 0:01:00.8]} 30. Rf1 {[%clk 0:00:24.6]}
30... Rxf2 {[%clk 0:00:59]} 31. Rxf2 {[%clk 0:00:21.7]} 31... Qxa1+ {[%clk
0:00:58.4]} 32. Rf1 {[%clk 0:00:21.1]} 32... Qd4+ {[%clk 0:00:57.9]} 33. Kh1
{[%clk 0:00:21.1]} 33... Qxh4 {[%clk 0:00:56.8]} 34. Rf8+ {[%clk 0:00:20.2]}
34... Kh7 {[%clk 0:00:55.3]} 35. Rf7 {[%clk 0:00:20.6]} 35... Qxh3+ {[%clk
0:00:54]} 36. Kg1 {[%clk 0:00:20.3]} 36... Qxg2# {[%clk 0:00:54.4]} 0-1

[Event "*** Titled Tuesday Blitz"]
[Site "Chess.com"]
[Date "2021.02.02"]
[Round "2"]
[White "kikydu96"]
[Black "AsadliVugar"]
[Result "1-0"]
[WhiteElo "2570"]
[BlackElo "2849"]
[TimeControl "180+1"]
[EndTime "10:19:02 PST"]
[Termination "kikydu96 won by resignation"]

1. e4 {[%clk 0:03:00.9]} 1... g6 {[%clk 0:02:58.1]} 2. d4 {[%clk 0:03:00.5]}
2... Bg7 {[%clk 0:02:58.7]} 3. Nc3 {[%clk 0:03:01.1]} 3... d6 {[%clk 0:02:59.4]}
4. Bf4 {[%clk 0:02:59.5]} 4... a6 {[%clk 0:02:58.3]} 5. Qd2 {[%clk 0:02:59.2]}
5... b5 {[%clk 0:02:59]} 6. O-O-O {[%clk 0:02:58.4]} 6... Bb7 {[%clk 0:02:59.4]}
7. f3 {[%clk 0:02:58.3]} 7... Nd7 {[%clk 0:02:59.7]} 8. h4 {[%clk 0:02:57.6]}
8... h6 {[%clk 0:02:58.6]} 9. g4 {[%clk 0:02:50.9]} 9... c5 {[%clk 0:02:58.6]}
10. dxc5 {[%clk 0:02:47.1]} 10... Nxc5 {[%clk 0:02:58.4]} 11. h5 {[%clk
0:02:25.8]} 11... g5 {[%clk 0:02:56.6]} 12. Be3 {[%clk 0:02:26.1]} 12... Rc8
{[%clk 0:02:54.5]} 13. Bd4 {[%clk 0:02:20.6]} 13... Bxd4 {[%clk 0:02:47.1]} 14.
Qxd4 {[%clk 0:02:21.5]} 14... Nf6 {[%clk 0:02:47.5]} 15. Nge2 {[%clk 0:02:04.9]}
15... Qa5 {[%clk 0:02:43.9]} 16. Kb1 {[%clk 0:01:57.1]} 16... b4 {[%clk
0:02:34.7]} 17. Nd5 {[%clk 0:01:55.9]} 17... Bxd5 {[%clk 0:02:35.1]} 18. exd5
{[%clk 0:01:56.8]} 18... Na4 {[%clk 0:02:27.4]} 19. Nc1 {[%clk 0:01:41.5]} 19...
Nb6 {[%clk 0:02:12.1]} 20. Nb3 {[%clk 0:01:38.4]} 20... Qxd5 {[%clk 0:02:11.2]}
21. Bxa6 {[%clk 0:01:29]} 21... Qxd4 {[%clk 0:02:01.8]} 22. Rxd4 {[%clk
0:01:29.9]} 22... Rc7 {[%clk 0:02:01.9]} 23. Rxb4 {[%clk 0:01:28.7]} 23... Nfd5
{[%clk 0:02:01.6]} 24. Rd4 {[%clk 0:01:23.7]} 24... e5 {[%clk 0:02:01.4]} 25.
Rdd1 {[%clk 0:01:18.1]} 25... Ke7 {[%clk 0:02:00.4]} 26. Rhe1 {[%clk 0:01:14.2]}
26... Nb4 {[%clk 0:01:53.9]} 27. Bd3 {[%clk 0:01:08]} 27... Nxd3 {[%clk
0:01:51.6]} 28. Rxd3 {[%clk 0:01:08.9]} 28... Nc4 {[%clk 0:01:42.8]} 29. Nd4
{[%clk 0:00:52.3]} 29... Rb8 {[%clk 0:01:42.1]} 30. b3 {[%clk 0:00:52.7]} 30...
Kf8 {[%clk 0:01:36.1]} 31. Nf5 {[%clk 0:00:48.3]} 31... Na3+ {[%clk 0:01:35.2]}
32. Kb2 {[%clk 0:00:47.1]} 32... Nxc2 {[%clk 0:01:24.5]} 33. Rc1 {[%clk
0:00:43]} 33... Nb4 {[%clk 0:01:23.7]} 34. Rxd6 {[%clk 0:00:29]} 34... Rxc1
{[%clk 0:01:17.3]} 35. Kxc1 {[%clk 0:00:29.9]} 35... Rc8+ {[%clk 0:01:13]} 36.
Kb1 {[%clk 0:00:26]} 36... Nxa2 {[%clk 0:01:12.2]} 37. Kxa2 {[%clk 0:00:24.4]}
37... Ke8 {[%clk 0:01:08]} 38. Rxh6 {[%clk 0:00:23.2]} 38... Rc2+ {[%clk
0:01:08.6]} 39. Ka3 {[%clk 0:00:23.1]} 39... Rc3 {[%clk 0:01:09.5]} 40. Rh8+
{[%clk 0:00:19.9]} 40... Kd7 {[%clk 0:01:10]} 41. Rg8 {[%clk 0:00:20.8]} 41...
Rxf3 {[%clk 0:01:10]} 42. h6 {[%clk 0:00:20.5]} 42... Rh3 {[%clk 0:01:09.2]} 43.
Rxg5 {[%clk 0:00:20.7]} 43... e4 {[%clk 0:01:09.1]} 44. Rh5 {[%clk 0:00:20.8]}
44... Rxh5 {[%clk 0:01:06.9]} 45. gxh5 {[%clk 0:00:21.7]} 45... e3 {[%clk
0:01:07.8]} 46. Nxe3 {[%clk 0:00:21.4]} 1-0

[Event "*** Titled Tuesday Blitz"]
[Site "Chess.com"]
[Date "2021.02.02"]
[Round "2"]
[White "boasovietica"]
[Black "tdf98pantani"]
[Result "0-1"]
[WhiteElo "2502"]
[BlackElo "2757"]
[TimeControl "180+1"]
[EndTime "10:19:04 PST"]
[Termination "tdf98pantani won by checkmate"]

1. c4 {[%clk 0:03:00.9]} 1... e6 {[%clk 0:02:59]} 2. g3 {[%clk 0:02:51.3]} 2...
d5 {[%clk 0:02:58.4]} 3. Bg2 {[%clk 0:02:50.4]} 3... dxc4 {[%clk 0:02:53.7]} 4.
Na3 {[%clk 0:02:42.3]} 4... Bxa3 {[%clk 0:02:52.3]} 5. bxa3 {[%clk 0:02:43.2]}
5... Nd7 {[%clk 0:02:50.5]} 6. Nf3 {[%clk 0:02:40.7]} 6... Ngf6 {[%clk
0:02:49.7]} 7. O-O {[%clk 0:02:40.3]} 7... O-O {[%clk 0:02:49]} 8. Qc2 {[%clk
0:02:40.4]} 8... Nb6 {[%clk 0:02:48.7]} 9. Bb2 {[%clk 0:02:37.6]} 9... Bd7
{[%clk 0:02:37.3]} 10. Ng5 {[%clk 0:02:25.9]} 10... Ba4 {[%clk 0:02:26.7]} 11.
Qb1 {[%clk 0:01:54.6]} 11... g6 {[%clk 0:02:09]} 12. Qc1 {[%clk 0:01:38.4]}
12... Bc6 {[%clk 0:02:03.8]} 13. Bxc6 {[%clk 0:01:20]} 13... bxc6 {[%clk
0:02:04]} 14. Rb1 {[%clk 0:00:52.9]} 14... h6 {[%clk 0:01:58.4]} 15. Nf3 {[%clk
0:00:44.8]} 15... Ne4 {[%clk 0:01:52.4]} 16. Rd1 {[%clk 0:00:41]} 16... Ng5
{[%clk 0:01:37.5]} 17. Ne5 {[%clk 0:00:30.1]} 17... Qd5 {[%clk 0:01:31.7]} 18.
f3 {[%clk 0:00:20.7]} 18... f6 {[%clk 0:01:14]} 19. Ng4 {[%clk 0:00:20.4]} 19...
Kg7 {[%clk 0:01:05.3]} 20. h4 {[%clk 0:00:19.1]} 20... Nh7 {[%clk 0:01:02.4]}
21. d3 {[%clk 0:00:17.4]} 21... g5 {[%clk 0:00:57.8]} 22. dxc4 {[%clk
0:00:15.1]} 22... Qc5+ {[%clk 0:00:57.8]} 23. Kg2 {[%clk 0:00:13.4]} 23... Rad8
{[%clk 0:00:49.6]} 24. hxg5 {[%clk 0:00:10.3]} 24... Nxg5 {[%clk 0:00:45.9]} 25.
Rh1 {[%clk 0:00:09.7]} 25... Qxc4 {[%clk 0:00:36.2]} 26. Nxh6 {[%clk 0:00:05.1]}
26... Qxe2+ {[%clk 0:00:35.9]} 27. Kg1 {[%clk 0:00:04.9]} 27... Nxf3# {[%clk
0:00:35.8]} 0-1